[Event "Titled Tuesday Blitz November 15 Late 2022"]
[White "Khandelwal, Ankush"]
[Black "Djokic, Mihailo"]
[WhiteFideId "413470"]
[BlackFideId "976440"]
[WhiteElo "2271"]
[BlackElo "2315"]
[Result "0-1"]
[Round "04"]
[TimeControl "180+1"]
[Date "2022.11.16"]
[WhiteClock "0:00:59"]
[BlackClock "0:01:26"]

1. e4 {[%clk 0:03:00]}  c5 {[%clk 0:02:59]} 2. Nf3 {[%clk 0:03:00]}  d6 {[%clk 0:03:00]} 3. d4 {[%clk 0:03:01]}  cxd4 {[%clk 0:03:01]} 4. Nxd4 {[%clk 0:03:02]}  Nf6 {[%clk 0:03:01]} 5. Nc3 {[%clk 0:03:02]}  g6 {[%clk 0:03:02]} 6. Be3 {[%clk 0:03:01]}  Bg7 {[%clk 0:03:03]} 7. f3 {[%clk 0:03:02]}  O-O {[%clk 0:03:04]} 8. Qd2 {[%clk 0:03:02]}  Nc6 {[%clk 0:03:04]} 9. O-O-O {[%clk 0:03:01]}  Bd7 {[%clk 0:03:05]} 10. h4 {[%clk 0:02:33]}  Rc8 {[%clk 0:03:05]} 11. g4 {[%clk 0:02:32]}  Ne5 {[%clk 0:03:05]} 12. h5 {[%clk 0:02:23]}  Qa5 {[%clk 0:03:04]} 13. Kb1 {[%clk 0:02:09]}  Nxf3 {[%clk 0:03:04]} 14. Nxf3 {[%clk 0:02:06]}  Rxc3 {[%clk 0:03:05]} 15. Qxc3 {[%clk 0:02:06]}  Qxc3 {[%clk 0:03:05]} 16. bxc3 {[%clk 0:02:06]}  Bxg4 {[%clk 0:03:06]} 17. Be2 {[%clk 0:01:56]}  Nxe4 {[%clk 0:03:06]} 18. Kc1 {[%clk 0:01:48]}  Nxc3 {[%clk 0:03:04]} 19. Kd2 {[%clk 0:01:40]}  Nxd1 {[%clk 0:02:39]} 20. Rxd1 {[%clk 0:01:41]}  Bxh5 {[%clk 0:02:39]} 21. Rb1 {[%clk 0:01:39]}  b6 {[%clk 0:02:38]} 22. a4 {[%clk 0:01:39]}  Rc8 {[%clk 0:02:35]} 23. Nd4 {[%clk 0:01:25]}  Bxd4 {[%clk 0:02:32]} 24. Bxd4 {[%clk 0:01:22]}  Bxe2 {[%clk 0:02:32]} 25. Kxe2 {[%clk 0:01:23]}  Rxc2+ {[%clk 0:02:33]} 26. Kd3 {[%clk 0:01:23]}  Rc8 {[%clk 0:02:19]} 27. a5 {[%clk 0:01:13]}  bxa5 {[%clk 0:02:18]} 28. Rb7 {[%clk 0:01:13]}  e5 {[%clk 0:02:18]} 29. Bc3 {[%clk 0:01:14]}  Rc5 {[%clk 0:01:59]} 30. Rxa7 {[%clk 0:01:10]}  h5 {[%clk 0:01:53]} 31. Rd7 {[%clk 0:01:09]}  h4 {[%clk 0:01:33]} 32. Rxd6 {[%clk 0:01:02]}  h3 {[%clk 0:01:33]} 33. Rd8+ {[%clk 0:00:59]}  Kg7 {[%clk 0:01:33]} 34. Re8 {[%clk 0:00:59]}  h2 {[%clk 0:01:26]} 0-1


[Site "https://www.chess.com"]

[Event "Titled Tuesday Blitz November 15 Late 2022"]
[White "Kleiman, Jake"]
[Black "Prithu Gupta"]
[WhiteFideId "2020041"]
[BlackFideId "46618546"]
[WhiteElo "2641"]
[BlackElo "2344"]
[Result "1-0"]
[Round "04"]
[TimeControl "180+1"]
[Date "2022.11.16"]
[WhiteClock "0:00:08"]
[BlackClock "0:00:04"]

1. Nf3 {[%clk 0:03:00]}  d5 {[%clk 0:02:56]} 2. g3 {[%clk 0:03:01]}  g6 {[%clk 0:02:50]} 3. Bg2 {[%clk 0:03:01]}  Bg7 {[%clk 0:02:49]} 4. O-O {[%clk 0:03:02]}  c5 {[%clk 0:02:49]} 5. d3 {[%clk 0:03:03]}  Nc6 {[%clk 0:02:48]} 6. Nbd2 {[%clk 0:03:03]}  e5 {[%clk 0:02:45]} 7. e4 {[%clk 0:03:03]}  d4 {[%clk 0:02:45]} 8. a4 {[%clk 0:03:01]}  Nge7 {[%clk 0:02:45]} 9. Nc4 {[%clk 0:03:02]}  O-O {[%clk 0:02:44]} 10. Nh4 {[%clk 0:03:01]}  f5 {[%clk 0:02:42]} 11. exf5 {[%clk 0:02:53]}  gxf5 {[%clk 0:02:41]} 12. f4 {[%clk 0:02:53]}  exf4 {[%clk 0:02:38]} 13. Bxf4 {[%clk 0:02:53]}  Be6 {[%clk 0:02:37]} 14. Qd2 {[%clk 0:02:27]}  Nd5 {[%clk 0:02:33]} 15. Bd6 {[%clk 0:02:04]}  Ne3 {[%clk 0:02:22]} 16. Bxf8 {[%clk 0:01:59]}  Nxf1 {[%clk 0:01:49]} 17. Rxf1 {[%clk 0:01:58]}  Qxf8 {[%clk 0:01:48]} 18. Qg5 {[%clk 0:01:39]}  Qe7 {[%clk 0:00:41]} 19. Qh5 {[%clk 0:01:15]}  Rf8 {[%clk 0:00:38]} 20. Re1 {[%clk 0:00:47]}  Qd7 {[%clk 0:00:27]} 21. Nf3 {[%clk 0:00:41]}  Bf7 {[%clk 0:00:25]} 22. Qh4 {[%clk 0:00:41]}  Nb4 {[%clk 0:00:20]} 23. Nfe5 {[%clk 0:00:35]}  Qe6 {[%clk 0:00:19]} 24. Re2 {[%clk 0:00:29]}  Bf6 {[%clk 0:00:11]} 25. Qf4 {[%clk 0:00:27]}  Re8 {[%clk 0:00:07]} 26. Bf3 {[%clk 0:00:22]}  Nd5 {[%clk 0:00:05]} 27. Qh6 {[%clk 0:00:17]}  Ne3 {[%clk 0:00:05]} 28. Nxf7 {[%clk 0:00:10]}  Qxf7 {[%clk 0:00:04]} 29. Nxe3 {[%clk 0:00:09]}  dxe3 {[%clk 0:00:04]} 30. c3 {[%clk 0:00:10]}  Bg7 {[%clk 0:00:04]} 31. Qf4 {[%clk 0:00:10]}  Qe6 {[%clk 0:00:04]} 32. Kg2 {[%clk 0:00:09]}  Bh6 {[%clk 0:00:04]} 33. Qh4 {[%clk 0:00:09]}  b6 {[%clk 0:00:03]} 34. c4 {[%clk 0:00:09]}  Kg7 {[%clk 0:00:03]} 35. Bd5 {[%clk 0:00:09]}  Qf6 {[%clk 0:00:03]} 36. Qh5 {[%clk 0:00:09]}  f4 {[%clk 0:00:04]} 37. Qxe8 {[%clk 0:00:08]}  fxg3 {[%clk 0:00:04]} 38. hxg3 {[%clk 0:00:08]} 1-0


[Site "https://www.chess.com"]

[Event "Titled Tuesday Blitz November 15 Late 2022"]
[White "Krallis, Christos"]
[Black "Luxama, Jacques Muller"]
[WhiteFideId "4298896"]
[BlackFideId "11900113"]
[WhiteElo "2243"]
[BlackElo "1931"]
[Result "1-0"]
[Round "04"]
[TimeControl "180+1"]
[Date "2022.11.16"]
[WhiteClock "0:00:23"]
[BlackClock "0:00:02"]

1. e4 {[%clk 0:02:57]}  c5 {[%clk 0:02:58]} 2. Nf3 {[%clk 0:02:57]}  d6 {[%clk 0:02:57]} 3. d4 {[%clk 0:02:57]}  cxd4 {[%clk 0:02:57]} 4. Nxd4 {[%clk 0:02:57]}  Nf6 {[%clk 0:02:57]} 5. Nc3 {[%clk 0:02:58]}  a6 {[%clk 0:02:57]} 6. Rg1 {[%clk 0:02:54]}  h5 {[%clk 0:02:56]} 7. Bg5 {[%clk 0:02:53]}  e5 {[%clk 0:02:49]} 8. Nb3 {[%clk 0:02:46]}  Be6 {[%clk 0:02:48]} 9. Qd2 {[%clk 0:02:45]}  Be7 {[%clk 0:02:47]} 10. O-O-O {[%clk 0:02:45]}  Nbd7 {[%clk 0:02:47]} 11. Kb1 {[%clk 0:02:37]}  Rc8 {[%clk 0:02:45]} 12. g3 {[%clk 0:02:30]}  Rxc3 {[%clk 0:02:05]} 13. Bxf6 {[%clk 0:02:29]}  Nxf6 {[%clk 0:02:05]} 14. Qxc3 {[%clk 0:02:29]}  Nxe4 {[%clk 0:02:04]} 15. Qe1 {[%clk 0:02:26]}  Nf6 {[%clk 0:01:55]} 16. Bg2 {[%clk 0:02:25]}  Qc7 {[%clk 0:01:54]} 17. f4 {[%clk 0:02:24]}  O-O {[%clk 0:01:50]} 18. Qa5 {[%clk 0:02:12]}  b6 {[%clk 0:01:41]} 19. Qxa6 {[%clk 0:02:06]}  exf4 {[%clk 0:01:40]} 20. gxf4 {[%clk 0:02:01]}  Bg4 {[%clk 0:01:20]} 21. Rde1 {[%clk 0:01:51]}  Bc8 {[%clk 0:01:18]} 22. Qe2 {[%clk 0:01:47]}  Re8 {[%clk 0:01:16]} 23. Qd2 {[%clk 0:01:42]}  Rd8 {[%clk 0:01:06]} 24. Bf1 {[%clk 0:01:38]}  d5 {[%clk 0:01:04]} 25. Bd3 {[%clk 0:01:33]}  Ne4 {[%clk 0:00:49]} 26. Qg2 {[%clk 0:01:33]}  Bf6 {[%clk 0:00:44]} 27. Bxe4 {[%clk 0:01:27]}  dxe4 {[%clk 0:00:44]} 28. Qxe4 {[%clk 0:01:28]}  Be6 {[%clk 0:00:37]} 29. Rd1 {[%clk 0:01:19]}  Rc8 {[%clk 0:00:34]} 30. f5 {[%clk 0:01:09]}  Bc4 {[%clk 0:00:31]} 31. Rd2 {[%clk 0:00:58]}  b5 {[%clk 0:00:26]} 32. Rdg2 {[%clk 0:00:56]}  Kf8 {[%clk 0:00:20]} 33. Qe1 {[%clk 0:00:49]}  Re8 {[%clk 0:00:17]} 34. Qb4+ {[%clk 0:00:48]}  Qe7 {[%clk 0:00:14]} 35. Qxe7+ {[%clk 0:00:47]}  Rxe7 {[%clk 0:00:15]} 36. Na5 {[%clk 0:00:44]}  Bd5 {[%clk 0:00:13]} 37. Rd2 {[%clk 0:00:44]}  Re5 {[%clk 0:00:13]} 38. Rgd1 {[%clk 0:00:37]}  Be4 {[%clk 0:00:12]} 39. Rd8+ {[%clk 0:00:37]}  Bxd8 {[%clk 0:00:11]} 40. Rxd8+ {[%clk 0:00:37]}  Ke7 {[%clk 0:00:11]} 41. Rd4 {[%clk 0:00:32]}  Bxf5 {[%clk 0:00:10]} 42. Nc6+ {[%clk 0:00:32]}  Kf6 {[%clk 0:00:09]} 43. Nxe5 {[%clk 0:00:33]}  Kxe5 {[%clk 0:00:09]} 44. Rb4 {[%clk 0:00:33]}  Bd7 {[%clk 0:00:09]} 45. c4 {[%clk 0:00:32]}  bxc4 {[%clk 0:00:08]} 46. a4 {[%clk 0:00:32]}  f5 {[%clk 0:00:07]} 47. a5 {[%clk 0:00:33]}  Bc6 {[%clk 0:00:06]} 48. Rb6 {[%clk 0:00:32]}  Be4+ {[%clk 0:00:05]} 49. Kc1 {[%clk 0:00:31]}  f4 {[%clk 0:00:05]} 50. Kd2 {[%clk 0:00:29]}  g5 {[%clk 0:00:06]} 51. a6 {[%clk 0:00:28]}  g4 {[%clk 0:00:05]} 52. Rh6 {[%clk 0:00:28]}  g3 {[%clk 0:00:04]} 53. hxg3 {[%clk 0:00:28]}  fxg3 {[%clk 0:00:04]} 54. Rxh5+ {[%clk 0:00:28]}  Kd4 {[%clk 0:00:04]} 55. a7 {[%clk 0:00:26]}  g2 {[%clk 0:00:04]} 56. Rg5 {[%clk 0:00:26]}  Bf3 {[%clk 0:00:02]} 57. Rg3 {[%clk 0:00:25]}  Bb7 {[%clk 0:00:02]} 58. Rg7 {[%clk 0:00:24]}  Be4 {[%clk 0:00:02]} 59. Rg4 {[%clk 0:00:24]}  Kd5 {[%clk 0:00:02]} 60. Rxe4 {[%clk 0:00:23]}  Kxe4 {[%clk 0:00:01]} 61. a8=Q+ {[%clk 0:00:23]}  Kf4 {[%clk 0:00:02]} 62. Qxg2 {[%clk 0:00:23]} 1-0


[Site "https://www.chess.com"]

[Event "Titled Tuesday Blitz November 15 Late 2022"]
[White "Krasteva, Beloslava"]
[Black "Pham, Khoi"]
[WhiteFideId "2922029"]
[BlackFideId "1054988"]
[WhiteElo "2187"]
[BlackElo "2461"]
[Result "1-0"]
[Round "04"]
[TimeControl "180+1"]
[Date "2022.11.16"]
[WhiteClock "0:00:12"]
[BlackClock "0:00:15"]

1. c4 {[%clk 0:03:00]}  g6 {[%clk 0:02:59]} 2. d4 {[%clk 0:03:00]}  Bg7 {[%clk 0:02:57]} 3. e4 {[%clk 0:02:59]}  d6 {[%clk 0:02:57]} 4. Nc3 {[%clk 0:02:58]}  c5 {[%clk 0:02:55]} 5. d5 {[%clk 0:02:58]}  Bxc3+ {[%clk 0:02:55]} 6. bxc3 {[%clk 0:02:59]}  e5 {[%clk 0:02:55]} 7. f4 {[%clk 0:02:51]}  Nd7 {[%clk 0:02:54]} 8. Nf3 {[%clk 0:02:50]}  Qe7 {[%clk 0:02:53]} 9. Bd3 {[%clk 0:02:49]}  Ngf6 {[%clk 0:02:52]} 10. O-O {[%clk 0:02:45]}  O-O {[%clk 0:02:47]} 11. fxe5 {[%clk 0:02:45]}  Nxe5 {[%clk 0:02:48]} 12. Nxe5 {[%clk 0:02:40]}  Qxe5 {[%clk 0:02:49]} 13. Bf4 {[%clk 0:02:40]}  Qxc3 {[%clk 0:02:48]} 14. Bxd6 {[%clk 0:02:32]}  Bg4 {[%clk 0:02:46]} 15. Be2 {[%clk 0:02:17]}  Bxe2 {[%clk 0:02:36]} 16. Qxe2 {[%clk 0:02:16]}  Qd4+ {[%clk 0:02:34]} 17. Kh1 {[%clk 0:02:04]}  Rfe8 {[%clk 0:02:28]} 18. e5 {[%clk 0:01:53]}  Nd7 {[%clk 0:01:44]} 19. Rad1 {[%clk 0:01:51]}  Qc3 {[%clk 0:01:34]} 20. Rf3 {[%clk 0:01:48]}  Qa5 {[%clk 0:01:18]} 21. Rdf1 {[%clk 0:01:46]}  f5 {[%clk 0:01:14]} 22. e6 {[%clk 0:01:38]}  Nf6 {[%clk 0:01:14]} 23. Rxf5 {[%clk 0:01:35]}  gxf5 {[%clk 0:01:13]} 24. Rxf5 {[%clk 0:01:36]}  Qb6 {[%clk 0:01:09]} 25. Be5 {[%clk 0:01:29]}  Qb1+ {[%clk 0:01:04]} 26. Rf1 {[%clk 0:01:28]}  Qe4 {[%clk 0:01:05]} 27. Qb2 {[%clk 0:01:12]}  Ng4 {[%clk 0:00:56]} 28. Bh8 {[%clk 0:01:05]}  Re7 {[%clk 0:00:50]} 29. d6 {[%clk 0:01:03]}  Qxc4 {[%clk 0:00:25]} 30. Rf5 {[%clk 0:00:16]}  h6 {[%clk 0:00:15]} 31. dxe7 {[%clk 0:00:16]}  Qd4 {[%clk 0:00:13]} 32. Bxd4 {[%clk 0:00:14]}  cxd4 {[%clk 0:00:14]} 33. Qxd4 {[%clk 0:00:13]}  Rc8 {[%clk 0:00:14]} 34. Qxg4+ {[%clk 0:00:13]}  Kh7 {[%clk 0:00:15]} 35. Rf7+ {[%clk 0:00:12]}  Kh8 {[%clk 0:00:15]} 36. Qg7# {[%clk 0:00:12]} 1-0


[Site "https://www.chess.com"]

[Event "Titled Tuesday Blitz November 15 Late 2022"]
[White "Krishnan, Varun"]
[Black "Zhalmakhanov, Ramazan"]
[WhiteFideId "5054508"]
[BlackFideId "13706357"]
[WhiteElo "2557"]
[BlackElo "2405"]
[Result "0-1"]
[Round "04"]
[TimeControl "180+1"]
[Date "2022.11.16"]
[WhiteClock "0:00:01"]
[BlackClock "0:00:05"]

1. e4 {[%clk 0:02:58]}  c5 {[%clk 0:02:59]} 2. Nf3 {[%clk 0:02:57]}  Nc6 {[%clk 0:02:59]} 3. d4 {[%clk 0:02:55]}  cxd4 {[%clk 0:02:59]} 4. Nxd4 {[%clk 0:02:55]}  g6 {[%clk 0:02:59]} 5. Nc3 {[%clk 0:02:48]}  Bg7 {[%clk 0:02:59]} 6. Be3 {[%clk 0:02:49]}  Nf6 {[%clk 0:03:00]} 7. Bc4 {[%clk 0:02:48]}  O-O {[%clk 0:03:00]} 8. Bb3 {[%clk 0:02:48]}  Re8 {[%clk 0:03:00]} 9. O-O {[%clk 0:02:47]}  d6 {[%clk 0:03:00]} 10. h3 {[%clk 0:02:46]}  Na5 {[%clk 0:03:01]} 11. f4 {[%clk 0:02:43]}  b6 {[%clk 0:02:58]} 12. e5 {[%clk 0:02:32]}  dxe5 {[%clk 0:02:59]} 13. fxe5 {[%clk 0:02:29]}  Nxb3 {[%clk 0:02:59]} 14. axb3 {[%clk 0:02:28]}  Nd5 {[%clk 0:02:59]} 15. Qf3 {[%clk 0:01:59]}  Nxe3 {[%clk 0:02:57]} 16. Qxe3 {[%clk 0:01:59]}  Bb7 {[%clk 0:02:50]} 17. Rad1 {[%clk 0:01:49]}  Qc7 {[%clk 0:02:48]} 18. e6 {[%clk 0:01:45]}  f5 {[%clk 0:02:47]} 19. Qg5 {[%clk 0:01:39]}  Rad8 {[%clk 0:02:29]} 20. Nce2 {[%clk 0:01:14]}  Ba6 {[%clk 0:02:07]} 21. c4 {[%clk 0:01:00]}  Qc5 {[%clk 0:02:02]} 22. Qe3 {[%clk 0:00:53]}  Rd6 {[%clk 0:01:44]} 23. Rf4 {[%clk 0:00:38]}  Bh6 {[%clk 0:01:36]} 24. Kh2 {[%clk 0:00:27]}  Bb7 {[%clk 0:01:29]} 25. Qg3 {[%clk 0:00:22]}  Bxf4 {[%clk 0:01:23]} 26. Qxf4 {[%clk 0:00:23]}  Red8 {[%clk 0:01:11]} 27. h4 {[%clk 0:00:23]}  Be4 {[%clk 0:00:26]} 28. Qe3 {[%clk 0:00:04]}  Qe5+ {[%clk 0:00:24]} 29. Kg1 {[%clk 0:00:03]}  f4 {[%clk 0:00:18]} 30. Qf2 {[%clk 0:00:03]}  Rxe6 {[%clk 0:00:11]} 31. Re1 {[%clk 0:00:03]}  Rf6 {[%clk 0:00:07]} 32. Nc3 {[%clk 0:00:02]}  Qxd4 {[%clk 0:00:07]} 33. Nxe4 {[%clk 0:00:01]}  Qxf2+ {[%clk 0:00:07]} 34. Kxf2 {[%clk 0:00:02]}  Re6 {[%clk 0:00:07]} 35. Kf3 {[%clk 0:00:03]}  Rd3+ {[%clk 0:00:05]} 36. Kxf4 {[%clk 0:00:02]}  Rxb3 {[%clk 0:00:06]} 37. g4 {[%clk 0:00:02]}  Kg7 {[%clk 0:00:05]} 38. Rd1 {[%clk 0:00:02]}  Rxb2 {[%clk 0:00:05]} 39. Rd7 {[%clk 0:00:02]}  Rb4 {[%clk 0:00:04]} 40. Ng5 {[%clk 0:00:02]}  Rxc4+ {[%clk 0:00:04]} 41. Kf3 {[%clk 0:00:01]}  Rc3+ {[%clk 0:00:05]} 42. Kf4 {[%clk 0:00:01]}  Rc4+ {[%clk 0:00:05]} 43. Kf3 {[%clk 0:00:01]}  Re5 {[%clk 0:00:05]} 0-1


[Site "https://www.chess.com"]

[Event "Titled Tuesday Blitz November 15 Late 2022"]
[White "Kujawski, Adam"]
[Black "Artemenko, Oleg"]
[WhiteFideId "1100920"]
[BlackFideId "14201798"]
[WhiteElo "2053"]
[BlackElo "2287"]
[Result "0-1"]
[Round "04"]
[TimeControl "180+1"]
[Date "2022.11.16"]
[WhiteClock "0:00:24"]
[BlackClock "0:01:55"]

1. e4 {[%clk 0:02:56]}  e5 {[%clk 0:02:58]} 2. Nf3 {[%clk 0:02:55]}  Nc6 {[%clk 0:02:58]} 3. Bb5 {[%clk 0:02:55]}  a6 {[%clk 0:02:58]} 4. Ba4 {[%clk 0:02:55]}  Nf6 {[%clk 0:02:57]} 5. O-O {[%clk 0:02:55]}  Nxe4 {[%clk 0:02:57]} 6. d4 {[%clk 0:02:54]}  b5 {[%clk 0:02:58]} 7. Bb3 {[%clk 0:02:55]}  d5 {[%clk 0:02:57]} 8. dxe5 {[%clk 0:02:55]}  Be6 {[%clk 0:02:54]} 9. Nbd2 {[%clk 0:02:55]}  Be7 {[%clk 0:02:49]} 10. Nxe4 {[%clk 0:02:30]}  dxe4 {[%clk 0:02:49]} 11. Bxe6 {[%clk 0:02:30]}  fxe6 {[%clk 0:02:48]} 12. Ng5 {[%clk 0:02:28]}  Qxd1 {[%clk 0:02:41]} 13. Rxd1 {[%clk 0:02:27]}  Bxg5 {[%clk 0:02:41]} 14. Bxg5 {[%clk 0:02:27]}  Rf8 {[%clk 0:02:39]} 15. a4 {[%clk 0:02:19]}  b4 {[%clk 0:02:35]} 16. c3 {[%clk 0:02:01]}  Rf5 {[%clk 0:02:30]} 17. Be3 {[%clk 0:01:59]}  Rxe5 {[%clk 0:02:29]} 18. cxb4 {[%clk 0:01:54]}  Nxb4 {[%clk 0:02:26]} 19. Rac1 {[%clk 0:01:49]}  Rc8 {[%clk 0:02:26]} 20. Rd4 {[%clk 0:01:15]}  Nd3 {[%clk 0:02:22]} 21. Rc6 {[%clk 0:01:09]}  a5 {[%clk 0:02:11]} 22. b3 {[%clk 0:01:03]}  Ke7 {[%clk 0:02:07]} 23. f3 {[%clk 0:00:51]}  Rb8 {[%clk 0:01:59]} 24. Rxc7+ {[%clk 0:00:45]}  Kf6 {[%clk 0:01:59]} 25. fxe4 {[%clk 0:00:35]}  Rxb3 {[%clk 0:01:57]} 26. Rc8 {[%clk 0:00:24]}  Rb1+ {[%clk 0:01:55]} 0-1


[Site "https://www.chess.com"]

[Event "Titled Tuesday Blitz November 15 Late 2022"]
[White "Kuzmicz, Krystian"]
[Black "Arnold, Ken"]
[WhiteFideId "1119125"]
[BlackFideId "2056836"]
[WhiteElo "2380"]
[BlackElo "2347"]
[Result "1-0"]
[Round "04"]
[TimeControl "180+1"]
[Date "2022.11.16"]
[WhiteClock "0:00:33"]
[BlackClock "0:00:25"]

1. e4 {[%clk 0:03:00]}  c6 {[%clk 0:03:00]} 2. Nf3 {[%clk 0:02:59]}  d5 {[%clk 0:03:00]} 3. d3 {[%clk 0:03:00]}  dxe4 {[%clk 0:03:00]} 4. dxe4 {[%clk 0:03:01]}  Qxd1+ {[%clk 0:03:00]} 5. Kxd1 {[%clk 0:03:01]}  Bg4 {[%clk 0:03:00]} 6. Be2 {[%clk 0:02:59]}  Nd7 {[%clk 0:02:59]} 7. Ne1 {[%clk 0:02:54]}  Bxe2+ {[%clk 0:02:58]} 8. Kxe2 {[%clk 0:02:54]}  g6 {[%clk 0:02:57]} 9. Nc3 {[%clk 0:02:53]}  Bg7 {[%clk 0:02:57]} 10. Be3 {[%clk 0:02:53]}  a6 {[%clk 0:02:54]} 11. a4 {[%clk 0:02:51]}  Ngf6 {[%clk 0:02:53]} 12. f3 {[%clk 0:02:50]}  h5 {[%clk 0:02:53]} 13. a5 {[%clk 0:02:49]}  Ne5 {[%clk 0:02:48]} 14. b3 {[%clk 0:02:48]}  Ned7 {[%clk 0:02:42]} 15. Ra4 {[%clk 0:02:42]}  Ng4 {[%clk 0:02:36]} 16. Bd2 {[%clk 0:02:41]}  Nge5 {[%clk 0:02:32]} 17. f4 {[%clk 0:01:47]}  Ng4 {[%clk 0:02:28]} 18. h3 {[%clk 0:01:40]}  Nh6 {[%clk 0:02:26]} 19. Nd3 {[%clk 0:01:36]}  e5 {[%clk 0:02:22]} 20. g3 {[%clk 0:01:33]}  h4 {[%clk 0:02:21]} 21. gxh4 {[%clk 0:01:18]}  exf4 {[%clk 0:02:20]} 22. Rb4 {[%clk 0:01:19]}  f3+ {[%clk 0:02:17]} 23. Kxf3 {[%clk 0:01:16]}  O-O-O {[%clk 0:02:15]} 24. Na4 {[%clk 0:01:12]}  f5 {[%clk 0:02:14]} 25. Bf4 {[%clk 0:01:04]}  fxe4+ {[%clk 0:02:11]} 26. Rxe4 {[%clk 0:01:04]}  Rhf8 {[%clk 0:01:57]} 27. Ndc5 {[%clk 0:00:57]}  Rde8 {[%clk 0:00:48]} 28. Nxd7 {[%clk 0:00:43]}  Rxf4+ {[%clk 0:00:37]} 29. Kxf4 {[%clk 0:00:38]}  Rxe4+ {[%clk 0:00:36]} 30. Kxe4 {[%clk 0:00:38]}  Kxd7 {[%clk 0:00:36]} 31. Nc5+ {[%clk 0:00:38]}  Ke7 {[%clk 0:00:35]} 32. Nxb7 {[%clk 0:00:37]}  Nf5 {[%clk 0:00:35]} 33. Rg1 {[%clk 0:00:36]}  Kf6 {[%clk 0:00:31]} 34. Nc5 {[%clk 0:00:34]}  Nxh4 {[%clk 0:00:30]} 35. Nxa6 {[%clk 0:00:34]}  Nf5 {[%clk 0:00:26]} 36. Nc5 {[%clk 0:00:34]}  Nd6+ {[%clk 0:00:26]} 37. Kd3 {[%clk 0:00:34]}  g5 {[%clk 0:00:26]} 38. a6 {[%clk 0:00:34]}  Nb5 {[%clk 0:00:25]} 39. c4 {[%clk 0:00:33]} 1-0


[Site "https://www.chess.com"]

[Event "Titled Tuesday Blitz November 15 Late 2022"]
[White "Leschinsky, Gary"]
[Black "Rorrer, Grayson"]
[WhiteFideId "30951321"]
[BlackFideId "30944996"]
[WhiteElo "1855"]
[BlackElo "2130"]
[Result "1/2-1/2"]
[Round "04"]
[TimeControl "180+1"]
[Date "2022.11.16"]
[WhiteClock "0:00:04"]
[BlackClock "0:00:07"]

1. d4 {[%clk 0:03:00]}  Nf6 {[%clk 0:02:58]} 2. c4 {[%clk 0:02:58]}  e6 {[%clk 0:02:58]} 3. Nc3 {[%clk 0:02:58]}  Bb4 {[%clk 0:02:58]} 4. e3 {[%clk 0:02:59]}  O-O {[%clk 0:02:58]} 5. Bd2 {[%clk 0:02:59]}  d5 {[%clk 0:02:57]} 6. Nf3 {[%clk 0:02:57]}  b6 {[%clk 0:02:58]} 7. cxd5 {[%clk 0:02:54]}  exd5 {[%clk 0:02:57]} 8. Bd3 {[%clk 0:02:55]}  Bb7 {[%clk 0:02:58]} 9. O-O {[%clk 0:02:54]}  Nbd7 {[%clk 0:02:58]} 10. Ne5 {[%clk 0:02:48]}  Re8 {[%clk 0:02:53]} 11. f4 {[%clk 0:02:45]}  c5 {[%clk 0:02:53]} 12. Be1 {[%clk 0:02:34]}  Bxc3 {[%clk 0:02:41]} 13. Bxc3 {[%clk 0:02:25]}  cxd4 {[%clk 0:02:35]} 14. Bxd4 {[%clk 0:02:20]}  Ne4 {[%clk 0:02:35]} 15. Rc1 {[%clk 0:01:59]}  f6 {[%clk 0:02:19]} 16. Nxd7 {[%clk 0:00:47]}  Qxd7 {[%clk 0:02:20]} 17. Qe2 {[%clk 0:00:47]}  Rec8 {[%clk 0:02:08]} 18. Bb5 {[%clk 0:00:42]}  Qe6 {[%clk 0:01:57]} 19. a3 {[%clk 0:00:42]}  Rxc1 {[%clk 0:01:53]} 20. Rxc1 {[%clk 0:00:42]}  Rc8 {[%clk 0:01:54]} 21. Rxc8+ {[%clk 0:00:42]}  Qxc8 {[%clk 0:01:55]} 22. Qd1 {[%clk 0:00:37]}  Ba6 {[%clk 0:01:39]} 23. Bxa6 {[%clk 0:00:23]}  Qxa6 {[%clk 0:01:40]} 24. Qg4 {[%clk 0:00:15]}  Qc4 {[%clk 0:01:29]} 25. Qe6+ {[%clk 0:00:15]}  Kf8 {[%clk 0:01:29]} 26. h3 {[%clk 0:00:12]}  Qc1+ {[%clk 0:00:22]} 27. Kh2 {[%clk 0:00:12]}  Nd2 {[%clk 0:00:23]} 28. Qd6+ {[%clk 0:00:11]}  Ke8 {[%clk 0:00:24]} 29. Qe6+ {[%clk 0:00:08]}  Kd8 {[%clk 0:00:24]} 30. Qxd5+ {[%clk 0:00:09]}  Kc7 {[%clk 0:00:25]} 31. Qf7+ {[%clk 0:00:04]}  Kc6 {[%clk 0:00:22]} 32. Qe8+ {[%clk 0:00:05]}  Kb7 {[%clk 0:00:22]} 33. Qd7+ {[%clk 0:00:05]}  Ka6 {[%clk 0:00:22]} 34. Qa4+ {[%clk 0:00:03]}  Kb7 {[%clk 0:00:22]} 35. Qd7+ {[%clk 0:00:04]}  Kb8 {[%clk 0:00:23]} 36. Kg3 {[%clk 0:00:03]}  Qe1+ {[%clk 0:00:18]} 37. Kg4 {[%clk 0:00:03]}  Qe2+ {[%clk 0:00:18]} 38. Kf5 {[%clk 0:00:03]}  Qxg2 {[%clk 0:00:06]} 39. Qd8+ {[%clk 0:00:03]}  Kb7 {[%clk 0:00:06]} 40. Qd7+ {[%clk 0:00:04]}  Kb8 {[%clk 0:00:07]} 41. Qe8+ {[%clk 0:00:04]}  Kc7 {[%clk 0:00:07]} 42. Qf7+ {[%clk 0:00:05]}  Kd8 {[%clk 0:00:05]} 43. Qf8+ {[%clk 0:00:05]}  Kd7 {[%clk 0:00:06]} 44. Qf7+ {[%clk 0:00:05]}  Kd8 {[%clk 0:00:06]} 45. Qf8+ {[%clk 0:00:03]}  Kc7 {[%clk 0:00:07]} 46. Qe7+ {[%clk 0:00:03]}  Kc6 {[%clk 0:00:07]} 47. Qe8+ {[%clk 0:00:03]}  Kb7 {[%clk 0:00:06]} 48. Qd7+ {[%clk 0:00:04]}  Ka6 {[%clk 0:00:06]} 49. Qa4+ {[%clk 0:00:04]}  Kb7 {[%clk 0:00:07]} 50. Qd7+ {[%clk 0:00:04]} 1/2-1/2


[Site "https://www.chess.com"]